[Event "Titled Tuesday Blitz July 11 Early 2023"]
[White "Tarnowska, Aleksandra"]
[Black "Marn, Jan"]
[WhiteFideId "1180967"]
[BlackFideId "14619245"]
[WhiteElo "2111"]
[BlackElo "2453"]
[Result "1-0"]
[Round "2"]
[TimeControl "180+2"]
[Date "2023.07.11"]
[WhiteClock "0:00:07"]
[BlackClock "0:00:01"]
[Board "214"]

1. e4 {[%clk 0:03:00]}  e5 {[%clk 0:02:33]} 2. Nf3 {[%clk 0:02:58]}  Nc6 {[%clk 0:02:33]} 3. Bb5 {[%clk 0:02:57]}  a6 {[%clk 0:02:33]} 4. Ba4 {[%clk 0:02:57]}  Nge7 {[%clk 0:02:28]} 5. O-O {[%clk 0:02:57]}  g6 {[%clk 0:02:27]} 6. c3 {[%clk 0:02:56]}  Bg7 {[%clk 0:02:27]} 7. d4 {[%clk 0:02:52]}  O-O {[%clk 0:02:24]} 8. d5 {[%clk 0:02:12]}  Nb8 {[%clk 0:02:20]} 9. Re1 {[%clk 0:02:01]}  d6 {[%clk 0:02:20]} 10. h3 {[%clk 0:02:00]}  Nd7 {[%clk 0:02:20]} 11. Nbd2 {[%clk 0:01:55]}  h6 {[%clk 0:02:09]} 12. Nf1 {[%clk 0:01:54]}  f5 {[%clk 0:02:03]} 13. exf5 {[%clk 0:01:49]}  Nxf5 {[%clk 0:01:51]} 14. N3h2 {[%clk 0:01:40]}  Nf6 {[%clk 0:01:39]} 15. Ne3 {[%clk 0:01:35]}  Nh4 {[%clk 0:01:16]} 16. Neg4 {[%clk 0:01:20]}  Nxg4 {[%clk 0:01:15]} 17. Nxg4 {[%clk 0:01:18]}  h5 {[%clk 0:01:15]} 18. Nh2 {[%clk 0:01:13]}  Nxg2 {[%clk 0:00:54]} 19. Kxg2 {[%clk 0:01:12]}  Qh4 {[%clk 0:00:55]} 20. Be3 {[%clk 0:00:43]}  Bxh3+ {[%clk 0:00:49]} 21. Kg1 {[%clk 0:00:20]}  Bh6 {[%clk 0:00:19]} 22. Qd3 {[%clk 0:00:17]}  Bxe3 {[%clk 0:00:13]} 23. Qxe3 {[%clk 0:00:13]}  Rf4 {[%clk 0:00:10]} 24. Bd1 {[%clk 0:00:04]}  Bd7 {[%clk 0:00:04]} 25. Qg3 {[%clk 0:00:03]}  Qf6 {[%clk 0:00:03]} 26. Rf1 {[%clk 0:00:03]}  Rf8 {[%clk 0:00:02]} 27. f3 {[%clk 0:00:02]}  Kh7 {[%clk 0:00:02]} 28. Be2 {[%clk 0:00:03]}  h4 {[%clk 0:00:03]} 29. Qg2 {[%clk 0:00:03]}  g5 {[%clk 0:00:03]} 30. Rad1 {[%clk 0:00:02]}  e4 {[%clk 0:00:03]} 31. fxe4 {[%clk 0:00:02]}  Qe5 {[%clk 0:00:02]} 32. Rxf4 {[%clk 0:00:02]}  Rxf4 {[%clk 0:00:03]} 33. Rf1 {[%clk 0:00:03]}  Rxf1+ {[%clk 0:00:02]} 34. Bxf1 {[%clk 0:00:02]}  Qf4 {[%clk 0:00:02]} 35. Qf2 {[%clk 0:00:02]}  Qc1 {[%clk 0:00:01]} 36. Qf7+ {[%clk 0:00:03]}  Kh6 {[%clk 0:00:02]} 37. Qxd7 {[%clk 0:00:03]}  Qe3+ {[%clk 0:00:02]} 38. Kg2 {[%clk 0:00:03]}  Qxe4+ {[%clk 0:00:01]} 39. Kg1 {[%clk 0:00:03]}  Qe3+ {[%clk 0:00:01]} 40. Kg2 {[%clk 0:00:03]}  Qe4+ {[%clk 0:00:02]} 41. Nf3 {[%clk 0:00:03]}  g4 {[%clk 0:00:02]} 42. Qe6+ {[%clk 0:00:03]}  Qxe6 {[%clk 0:00:02]} 43. dxe6 {[%clk 0:00:03]}  gxf3+ {[%clk 0:00:03]} 44. Kxf3 {[%clk 0:00:04]}  Kg7 {[%clk 0:00:03]} 45. Bh3 {[%clk 0:00:05]}  Kf6 {[%clk 0:00:04]} 46. Kf4 {[%clk 0:00:05]}  b5 {[%clk 0:00:03]} 47. b3 {[%clk 0:00:05]}  c5 {[%clk 0:00:02]} 48. a4 {[%clk 0:00:05]}  bxa4 {[%clk 0:00:03]} 49. bxa4 {[%clk 0:00:06]}  a5 {[%clk 0:00:04]} 50. Bg4 {[%clk 0:00:06]}  d5 {[%clk 0:00:04]} 51. Kf3 {[%clk 0:00:07]}  d4 {[%clk 0:00:04]} 52. cxd4 {[%clk 0:00:07]}  cxd4 {[%clk 0:00:01]} 53. Ke4 {[%clk 0:00:07]} 1-0


[Site "https://www.chess.com"]

[Event "Titled Tuesday Blitz July 11 Early 2023"]
[White "Nunez V, Gustavo Eduardo"]
[Black "campochess"]
[WhiteFideId "4403690"]
[WhiteElo "2451"]
[BlackElo "2110"]
[Result "1-0"]
[Round "2"]
[TimeControl "180+2"]
[Date "2023.07.11"]
[WhiteClock "0:00:58"]
[BlackClock "0:00:38"]
[Board "215"]

1. e4 {[%clk 0:03:00]}  c5 {[%clk 0:02:51]} 2. Nc3 {[%clk 0:02:57]}  Nc6 {[%clk 0:02:51]} 3. g3 {[%clk 0:02:57]}  g6 {[%clk 0:02:51]} 4. Bg2 {[%clk 0:02:57]}  Bg7 {[%clk 0:02:51]} 5. Nge2 {[%clk 0:02:57]}  d6 {[%clk 0:02:51]} 6. O-O {[%clk 0:02:58]}  Nf6 {[%clk 0:02:50]} 7. d3 {[%clk 0:02:59]}  O-O {[%clk 0:02:49]} 8. h3 {[%clk 0:02:59]}  Rb8 {[%clk 0:02:49]} 9. f4 {[%clk 0:02:58]}  b5 {[%clk 0:02:48]} 10. e5 {[%clk 0:02:58]}  Nxe5 {[%clk 0:02:44]} 11. fxe5 {[%clk 0:02:55]}  dxe5 {[%clk 0:02:44]} 12. Be3 {[%clk 0:02:54]}  Nd7 {[%clk 0:02:42]} 13. a4 {[%clk 0:02:38]}  b4 {[%clk 0:02:41]} 14. Ne4 {[%clk 0:02:37]}  Qa5 {[%clk 0:02:37]} 15. Nc1 {[%clk 0:02:32]}  f5 {[%clk 0:02:36]} 16. Nb3 {[%clk 0:02:29]}  Qc7 {[%clk 0:02:35]} 17. Nexc5 {[%clk 0:02:28]}  Nf6 {[%clk 0:02:30]} 18. d4 {[%clk 0:02:19]}  Rd8 {[%clk 0:02:22]} 19. Nd3 {[%clk 0:02:19]}  f4 {[%clk 0:02:21]} 20. gxf4 {[%clk 0:02:18]}  exd4 {[%clk 0:02:21]} 21. Bxd4 {[%clk 0:02:17]}  Rxd4 {[%clk 0:02:20]} 22. Nxd4 {[%clk 0:02:18]}  Nh5 {[%clk 0:02:19]} 23. Nb5 {[%clk 0:02:13]}  Qb6+ {[%clk 0:02:18]} 24. Kh2 {[%clk 0:02:13]}  a6 {[%clk 0:02:15]} 25. Nxb4 {[%clk 0:01:52]}  axb5 {[%clk 0:02:14]} 26. Nd5 {[%clk 0:01:53]}  Qc5 {[%clk 0:02:10]} 27. axb5 {[%clk 0:01:48]}  Rxb5 {[%clk 0:02:08]} 28. c4 {[%clk 0:01:47]}  Rxb2 {[%clk 0:02:06]} 29. Ra8 {[%clk 0:01:45]}  Kf7 {[%clk 0:01:45]} 30. Qe1 {[%clk 0:01:06]}  Be6 {[%clk 0:01:40]} 31. Ra6 {[%clk 0:00:59]}  Bxd5 {[%clk 0:01:01]} 32. cxd5 {[%clk 0:01:00]}  Qc2 {[%clk 0:00:38]} 33. Qe6+ {[%clk 0:00:58]} 1-0


[Site "https://www.chess.com"]

[Event "Titled Tuesday Blitz July 11 Early 2023"]
[White "Zheenbekov, Nurgazy"]
[Black "Floresvillar Gonzalez, Luis Migu"]
[WhiteFideId "13800485"]
[BlackFideId "5100542"]
[WhiteElo "2444"]
[BlackElo "2099"]
[Result "1-0"]
[Round "2"]
[TimeControl "180+2"]
[Date "2023.07.11"]
[WhiteClock "0:00:32"]
[BlackClock "0:00:14"]
[Board "218"]

1. e4 {[%clk 0:03:00]}  c6 {[%clk 0:02:56]} 2. d4 {[%clk 0:02:59]}  d5 {[%clk 0:02:57]} 3. exd5 {[%clk 0:02:59]}  cxd5 {[%clk 0:02:57]} 4. Bd3 {[%clk 0:02:59]}  Nc6 {[%clk 0:02:56]} 5. c3 {[%clk 0:02:59]}  Nf6 {[%clk 0:02:54]} 6. h3 {[%clk 0:02:58]}  Qc7 {[%clk 0:02:53]} 7. Nf3 {[%clk 0:02:55]}  g6 {[%clk 0:02:48]} 8. O-O {[%clk 0:02:54]}  Bf5 {[%clk 0:02:47]} 9. Be2 {[%clk 0:02:53]}  Bg7 {[%clk 0:02:46]} 10. Re1 {[%clk 0:02:52]}  h5 {[%clk 0:02:44]} 11. Nbd2 {[%clk 0:02:43]}  Be4 {[%clk 0:02:38]} 12. Nxe4 {[%clk 0:02:31]}  Nxe4 {[%clk 0:02:37]} 13. Ng5 {[%clk 0:02:27]}  Nxg5 {[%clk 0:02:33]} 14. Bxg5 {[%clk 0:02:27]}  O-O {[%clk 0:02:31]} 15. Qd2 {[%clk 0:02:24]}  e6 {[%clk 0:02:25]} 16. Bf4 {[%clk 0:02:06]}  Qe7 {[%clk 0:02:18]} 17. g4 {[%clk 0:01:56]}  hxg4 {[%clk 0:02:11]} 18. hxg4 {[%clk 0:01:56]}  f5 {[%clk 0:02:09]} 19. g5 {[%clk 0:01:52]}  Kf7 {[%clk 0:02:06]} 20. Bf3 {[%clk 0:01:47]}  Qd7 {[%clk 0:01:54]} 21. Kg2 {[%clk 0:01:38]}  Rae8 {[%clk 0:01:53]} 22. Rh1 {[%clk 0:01:36]}  Rh8 {[%clk 0:01:53]} 23. b4 {[%clk 0:01:19]}  b5 {[%clk 0:01:47]} 24. a4 {[%clk 0:01:17]}  Rxh1 {[%clk 0:01:43]} 25. Kxh1 {[%clk 0:01:11]}  Rh8+ {[%clk 0:01:39]} 26. Kg2 {[%clk 0:01:11]}  a6 {[%clk 0:01:30]} 27. axb5 {[%clk 0:01:10]}  axb5 {[%clk 0:01:30]} 28. Ra6 {[%clk 0:01:09]}  Qb7 {[%clk 0:01:28]} 29. Qa2 {[%clk 0:01:03]}  Bxd4 {[%clk 0:00:58]} 30. Bxd5 {[%clk 0:00:52]}  Nxb4 {[%clk 0:00:35]} 31. Bxb7 {[%clk 0:00:35]}  Nxa2 {[%clk 0:00:33]} 32. Rxa2 {[%clk 0:00:35]}  Bxc3 {[%clk 0:00:30]} 33. Bc6 {[%clk 0:00:35]}  b4 {[%clk 0:00:27]} 34. Ra7+ {[%clk 0:00:35]}  Kf8 {[%clk 0:00:17]} 35. Bd6+ {[%clk 0:00:34]}  Kg8 {[%clk 0:00:16]} 36. Bd7 {[%clk 0:00:32]}  Rh7 {[%clk 0:00:14]} 37. Bxe6+ {[%clk 0:00:32]}  Kh8 {[%clk 0:00:14]} 38. Ra8+ {[%clk 0:00:32]}  Kg7 {[%clk 0:00:14]} 39. Rg8# {[%clk 0:00:32]} 1-0


[Site "https://www.chess.com"]

[Event "Titled Tuesday Blitz July 11 Early 2023"]
[White "cycygogne"]
[Black "Zacurdajev, Dmitry"]
[BlackFideId "4196309"]
[WhiteElo "2099"]
[BlackElo "2443"]
[Result "0-1"]
[Round "2"]
[TimeControl "180+2"]
[Date "2023.07.11"]
[WhiteClock "0:00:15"]
[BlackClock "0:00:24"]
[Board "219"]

1. e4 {[%clk 0:03:00]}  c6 {[%clk 0:02:56]} 2. d4 {[%clk 0:03:00]}  d5 {[%clk 0:02:57]} 3. Nc3 {[%clk 0:03:00]}  dxe4 {[%clk 0:02:57]} 4. Nxe4 {[%clk 0:03:01]}  Nf6 {[%clk 0:02:58]} 5. Ng3 {[%clk 0:03:01]}  Bg4 {[%clk 0:02:54]} 6. Be2 {[%clk 0:02:58]}  Bxe2 {[%clk 0:02:50]} 7. N1xe2 {[%clk 0:02:59]}  e6 {[%clk 0:02:49]} 8. O-O {[%clk 0:02:58]}  h5 {[%clk 0:02:49]} 9. Bg5 {[%clk 0:02:50]}  Be7 {[%clk 0:02:41]} 10. Bxf6 {[%clk 0:02:40]}  gxf6 {[%clk 0:02:35]} 11. h3 {[%clk 0:02:23]}  f5 {[%clk 0:02:28]} 12. Nf4 {[%clk 0:02:17]}  h4 {[%clk 0:02:24]} 13. Nge2 {[%clk 0:02:18]}  Nd7 {[%clk 0:02:21]} 14. c4 {[%clk 0:02:08]}  Bd6 {[%clk 0:01:34]} 15. Qd2 {[%clk 0:02:04]}  Rg8 {[%clk 0:01:29]} 16. Kh1 {[%clk 0:02:03]}  Qg5 {[%clk 0:01:24]} 17. Rg1 {[%clk 0:01:54]}  O-O-O {[%clk 0:01:12]} 18. Rad1 {[%clk 0:01:48]}  Nf6 {[%clk 0:01:07]} 19. Qe3 {[%clk 0:01:24]}  Ne4 {[%clk 0:01:00]} 20. d5 {[%clk 0:01:13]}  Bc5 {[%clk 0:00:57]} 21. Nd4 {[%clk 0:00:58]}  e5 {[%clk 0:00:56]} 22. Nfe6 {[%clk 0:00:17]}  Qxe3 {[%clk 0:00:40]} 23. fxe3 {[%clk 0:00:18]}  fxe6 {[%clk 0:00:38]} 24. Nxe6 {[%clk 0:00:18]}  Bxe3 {[%clk 0:00:28]} 25. Rge1 {[%clk 0:00:15]}  Nf2+ {[%clk 0:00:24]} 0-1


[Site "https://www.chess.com"]

[Event "Titled Tuesday Blitz July 11 Early 2023"]
[White "Schain, Randolph"]
[Black "Sztokbant, Bernardo Vainzoff"]
[WhiteFideId "2003139"]
[BlackFideId "2115956"]
[WhiteElo "2074"]
[BlackElo "2432"]
[Result "0-1"]
[Round "2"]
[TimeControl "180+2"]
[Date "2023.07.11"]
[WhiteClock "0:01:47"]
[BlackClock "0:00:04"]
[Board "221"]

1. e4 {[%clk 0:02:55]}  c6 {[%clk 0:00:05]} 2. d3 {[%clk 0:02:54]}  d5 {[%clk 0:00:06]} 3. Nd2 {[%clk 0:02:54]}  e5 {[%clk 0:00:06]} 4. g3 {[%clk 0:02:53]}  Bd6 {[%clk 0:00:06]} 5. Bg2 {[%clk 0:02:53]}  Nf6 {[%clk 0:00:07]} 6. Ngf3 {[%clk 0:02:52]}  O-O {[%clk 0:00:06]} 7. O-O {[%clk 0:02:51]}  Nbd7 {[%clk 0:00:07]} 8. c3 {[%clk 0:02:51]}  h6 {[%clk 0:00:07]} 9. Re1 {[%clk 0:02:48]}  Re8 {[%clk 0:00:07]} 10. Nf1 {[%clk 0:02:39]}  Nf8 {[%clk 0:00:07]} 11. Qc2 {[%clk 0:02:32]}  Ng6 {[%clk 0:00:07]} 12. Ne3 {[%clk 0:02:30]}  Be6 {[%clk 0:00:07]} 13. Nf5 {[%clk 0:02:14]}  Bxf5 {[%clk 0:00:06]} 14. exf5 {[%clk 0:02:14]}  Nf8 {[%clk 0:00:07]} 15. d4 {[%clk 0:02:11]}  exd4 {[%clk 0:00:06]} 16. Nxd4 {[%clk 0:02:06]}  Rxe1+ {[%clk 0:00:05]} 17. Bf1 {[%clk 0:02:04]}  Qe7 {[%clk 0:00:06]} 18. h3 {[%clk 0:01:58]}  Ne4 {[%clk 0:00:05]} 19. g4 {[%clk 0:01:56]}  Ng5 {[%clk 0:00:04]} 20. Bxg5 {[%clk 0:01:55]}  hxg5 {[%clk 0:00:05]} 21. f6 {[%clk 0:01:51]}  gxf6 {[%clk 0:00:04]} 22. Nf5 {[%clk 0:01:51]}  Qe5 {[%clk 0:00:04]} 23. Rxe1 {[%clk 0:01:47]}  Qh2# {[%clk 0:00:04]} 0-1


[Site "https://www.chess.com"]

[Event "Titled Tuesday Blitz July 11 Early 2023"]
[White "Tqebuchava, Zurab"]
[Black "Avila Jimenez, Xavier"]
[WhiteFideId "13601113"]
[BlackFideId "2210533"]
[WhiteElo "2045"]
[BlackElo "2427"]
[Result "0-1"]
[Round "2"]
[TimeControl "180+2"]
[Date "2023.07.11"]
[WhiteClock "0:00:00"]
[BlackClock "0:00:14"]
[Board "223"]

1. e4 {[%clk 0:03:00]}  d5 {[%clk 0:02:59]} 2. exd5 {[%clk 0:03:00]}  Qxd5 {[%clk 0:03:00]} 3. Nc3 {[%clk 0:02:59]}  Qd6 {[%clk 0:03:00]} 4. Nf3 {[%clk 0:02:59]}  Nf6 {[%clk 0:03:00]} 5. h3 {[%clk 0:02:57]}  c6 {[%clk 0:03:00]} 6. Be2 {[%clk 0:02:55]}  Bf5 {[%clk 0:03:01]} 7. O-O {[%clk 0:02:53]}  h6 {[%clk 0:03:01]} 8. d4 {[%clk 0:02:50]}  Nbd7 {[%clk 0:03:00]} 9. Be3 {[%clk 0:02:48]}  e6 {[%clk 0:03:00]} 10. Qd2 {[%clk 0:02:47]}  Qc7 {[%clk 0:03:00]} 11. Bf4 {[%clk 0:02:44]}  Bd6 {[%clk 0:03:00]} 12. Bxd6 {[%clk 0:02:44]}  Qxd6 {[%clk 0:03:01]} 13. a4 {[%clk 0:02:41]}  O-O {[%clk 0:03:00]} 14. a5 {[%clk 0:02:40]}  a6 {[%clk 0:03:00]} 15. Rfe1 {[%clk 0:02:30]}  Rad8 {[%clk 0:02:56]} 16. Bd3 {[%clk 0:02:29]}  Bxd3 {[%clk 0:02:44]} 17. Qxd3 {[%clk 0:02:29]}  c5 {[%clk 0:02:45]} 18. Ne4 {[%clk 0:02:17]}  Qc6 {[%clk 0:02:36]} 19. dxc5 {[%clk 0:01:51]}  Nxe4 {[%clk 0:02:19]} 20. Qxe4 {[%clk 0:01:50]}  Qxe4 {[%clk 0:02:18]} 21. Rxe4 {[%clk 0:01:49]}  Nxc5 {[%clk 0:02:19]} 22. Rc4 {[%clk 0:01:42]}  Rd5 {[%clk 0:02:09]} 23. b4 {[%clk 0:01:29]}  Nd7 {[%clk 0:02:05]} 24. Rc7 {[%clk 0:01:28]}  Rb8 {[%clk 0:02:00]} 25. Kf1 {[%clk 0:01:18]}  Kf8 {[%clk 0:02:00]} 26. Ke2 {[%clk 0:01:15]}  Ke8 {[%clk 0:01:57]} 27. Rd1 {[%clk 0:01:08]}  Rxd1 {[%clk 0:01:54]} 28. Kxd1 {[%clk 0:01:07]}  Kd8 {[%clk 0:01:54]} 29. Rc3 {[%clk 0:01:02]}  Rc8 {[%clk 0:01:51]} 30. Rd3 {[%clk 0:01:00]}  Ke7 {[%clk 0:01:48]} 31. Kd2 {[%clk 0:00:55]}  f6 {[%clk 0:01:45]} 32. Rc3 {[%clk 0:00:53]}  Rxc3 {[%clk 0:01:41]} 33. Kxc3 {[%clk 0:00:53]}  Kd6 {[%clk 0:01:41]} 34. Kd4 {[%clk 0:00:50]}  f5 {[%clk 0:01:37]} 35. c4 {[%clk 0:00:42]}  e5+ {[%clk 0:01:38]} 36. Kc3 {[%clk 0:00:41]}  g5 {[%clk 0:01:33]} 37. g4 {[%clk 0:00:37]}  Ke6 {[%clk 0:01:26]} 38. Nd2 {[%clk 0:00:34]}  Nf6 {[%clk 0:01:13]} 39. gxf5+ {[%clk 0:00:32]}  Kxf5 {[%clk 0:01:12]} 40. b5 {[%clk 0:00:32]}  g4 {[%clk 0:00:58]} 41. h4 {[%clk 0:00:26]}  Nd7 {[%clk 0:00:36]} 42. Kb4 {[%clk 0:00:24]}  e4 {[%clk 0:00:33]} 43. c5 {[%clk 0:00:22]}  axb5 {[%clk 0:00:30]} 44. a6 {[%clk 0:00:13]}  bxa6 {[%clk 0:00:25]} 45. c6 {[%clk 0:00:12]}  Nb6 {[%clk 0:00:23]} 46. Kc5 {[%clk 0:00:12]}  Nc8 {[%clk 0:00:23]} 47. c7 {[%clk 0:00:12]}  e3 {[%clk 0:00:19]} 48. fxe3 {[%clk 0:00:11]}  g3 {[%clk 0:00:20]} 49. Nf3 {[%clk 0:00:09]}  Ke4 {[%clk 0:00:19]} 50. Ng1 {[%clk 0:00:09]}  Kxe3 {[%clk 0:00:19]} 51. Kc6 {[%clk 0:00:09]}  b4 {[%clk 0:00:16]} 52. Kd7 {[%clk 0:00:09]}  Nb6+ {[%clk 0:00:16]} 53. Kc6 {[%clk 0:00:09]}  Nc8 {[%clk 0:00:16]} 54. Kd7 {[%clk 0:00:09]}  Na7 {[%clk 0:00:14]} 55. Kd6 {[%clk 0:00:05]}  b3 {[%clk 0:00:15]} 56. Kc5 {[%clk 0:00:03]}  b2 {[%clk 0:00:15]} 57. Kb6 {[%clk 0:00:03]}  Nc8+ {[%clk 0:00:15]} 58. Kb7 {[%clk 0:00:00]}  Ne7 {[%clk 0:00:14]} 0-1


[Site "https://www.chess.com"]

[Event "Titled Tuesday Blitz July 11 Early 2023"]
[White "Matveeva, Olga"]
[Black "Wisdom, Daren"]
[WhiteFideId "24107018"]
[BlackFideId "7400438"]
[WhiteElo "2424"]
[BlackElo "2034"]
[Result "0-1"]
[Round "2"]
[TimeControl "180+2"]
[Date "2023.07.11"]
[WhiteClock "0:00:11"]
[BlackClock "0:00:31"]
[Board "224"]

1. d4 {[%clk 0:03:00]}  d5 {[%clk 0:02:59]} 2. c4 {[%clk 0:03:00]}  Nc6 {[%clk 0:02:58]} 3. Nc3 {[%clk 0:02:57]}  e6 {[%clk 0:02:54]} 4. Nf3 {[%clk 0:02:55]}  Nf6 {[%clk 0:02:54]} 5. cxd5 {[%clk 0:02:52]}  exd5 {[%clk 0:02:51]} 6. Bg5 {[%clk 0:02:52]}  Be7 {[%clk 0:02:50]} 7. e3 {[%clk 0:02:52]}  O-O {[%clk 0:02:48]} 8. Bd3 {[%clk 0:02:51]}  Bg4 {[%clk 0:02:46]} 9. Bxf6 {[%clk 0:02:30]}  Bxf6 {[%clk 0:02:45]} 10. Qb3 {[%clk 0:02:29]}  Be6 {[%clk 0:02:36]} 11. Qxb7 {[%clk 0:02:27]}  Na5 {[%clk 0:02:34]} 12. Qa6 {[%clk 0:02:26]}  c5 {[%clk 0:02:33]} 13. dxc5 {[%clk 0:02:24]}  Bxc3+ {[%clk 0:02:33]} 14. bxc3 {[%clk 0:02:24]}  Rc8 {[%clk 0:02:32]} 15. Nd4 {[%clk 0:02:17]}  Rxc5 {[%clk 0:02:26]} 16. Nxe6 {[%clk 0:02:16]}  fxe6 {[%clk 0:02:24]} 17. Qxe6+ {[%clk 0:02:17]}  Kh8 {[%clk 0:02:24]} 18. O-O {[%clk 0:02:06]}  Rc6 {[%clk 0:02:23]} 19. Qh3 {[%clk 0:02:03]}  h6 {[%clk 0:02:22]} 20. Rfd1 {[%clk 0:01:59]}  Nb7 {[%clk 0:02:22]} 21. Rab1 {[%clk 0:01:51]}  Nc5 {[%clk 0:02:20]} 22. Bc2 {[%clk 0:01:50]}  Rcf6 {[%clk 0:02:18]} 23. Rd2 {[%clk 0:01:47]}  Qc7 {[%clk 0:02:16]} 24. Qg3 {[%clk 0:01:41]}  Qe7 {[%clk 0:02:13]} 25. Rxd5 {[%clk 0:01:32]}  Nd7 {[%clk 0:02:07]} 26. Rbd1 {[%clk 0:01:29]}  Rxf2 {[%clk 0:02:03]} 27. Qxf2 {[%clk 0:01:19]}  Rxf2 {[%clk 0:02:00]} 28. Kxf2 {[%clk 0:01:20]}  Qf6+ {[%clk 0:01:58]} 29. Kg1 {[%clk 0:01:19]}  Qxc3 {[%clk 0:01:57]} 30. Bf5 {[%clk 0:01:10]}  Nf8 {[%clk 0:01:57]} 31. e4 {[%clk 0:01:07]}  g6 {[%clk 0:01:56]} 32. Rd8 {[%clk 0:00:54]}  Qc5+ {[%clk 0:01:44]} 33. Kh1 {[%clk 0:00:50]}  gxf5 {[%clk 0:01:38]} 34. e5 {[%clk 0:00:46]}  Kg7 {[%clk 0:01:35]} 35. e6 {[%clk 0:00:42]}  Nxe6 {[%clk 0:01:33]} 36. R8d7+ {[%clk 0:00:42]}  Kf6 {[%clk 0:01:31]} 37. h3 {[%clk 0:00:39]}  Nf4 {[%clk 0:01:23]} 38. R7d6+ {[%clk 0:00:38]}  Kg5 {[%clk 0:01:18]} 39. Rd8 {[%clk 0:00:36]}  h5 {[%clk 0:00:58]} 40. Rg8+ {[%clk 0:00:35]}  Kh4 {[%clk 0:00:36]} 41. Kh2 {[%clk 0:00:28]}  Ne2 {[%clk 0:00:35]} 42. g3+ {[%clk 0:00:18]}  Nxg3 {[%clk 0:00:35]} 43. Rxg3 {[%clk 0:00:18]}  Qc2+ {[%clk 0:00:33]} 44. Rg2 {[%clk 0:00:18]}  Qxd1 {[%clk 0:00:32]} 45. Rg1 {[%clk 0:00:17]}  Qd2+ {[%clk 0:00:32]} 46. Rg2 {[%clk 0:00:17]}  Qd6+ {[%clk 0:00:32]} 47. Kh1 {[%clk 0:00:16]}  Kxh3 {[%clk 0:00:32]} 48. Rf2 {[%clk 0:00:11]}  Qd1+ {[%clk 0:00:31]} 0-1


[Site "https://www.chess.com"]

[Event "Titled Tuesday Blitz July 11 Early 2023"]
[White "Nikologorsky, Matfei"]
[Black "Ottosen, David"]
[WhiteFideId "24102474"]
[BlackFideId "2603080"]
[WhiteElo "2423"]
[BlackElo "2013"]
[Result "1-0"]
[Round "2"]
[TimeControl "180+2"]
[Date "2023.07.11"]
[WhiteClock "0:02:11"]
[BlackClock "0:02:18"]
[Board "227"]

1. e4 {[%clk 0:03:00]}  e6 {[%clk 0:02:57]} 2. d4 {[%clk 0:03:00]}  d5 {[%clk 0:02:57]} 3. Nd2 {[%clk 0:03:00]}  Be7 {[%clk 0:02:57]} 4. Bd3 {[%clk 0:02:58]}  c5 {[%clk 0:02:57]} 5. exd5 {[%clk 0:02:57]}  Qxd5 {[%clk 0:02:55]} 6. dxc5 {[%clk 0:02:45]}  Bxc5 {[%clk 0:02:51]} 7. Ngf3 {[%clk 0:02:44]}  Nf6 {[%clk 0:02:50]} 8. O-O {[%clk 0:02:42]}  Nc6 {[%clk 0:02:50]} 9. Qe2 {[%clk 0:02:35]}  O-O {[%clk 0:02:49]} 10. Ne4 {[%clk 0:02:32]}  Nxe4 {[%clk 0:02:45]} 11. Bxe4 {[%clk 0:02:32]}  Qh5 {[%clk 0:02:44]} 12. c3 {[%clk 0:02:24]}  e5 {[%clk 0:02:44]} 13. Be3 {[%clk 0:02:18]}  Bxe3 {[%clk 0:02:42]} 14. Qxe3 {[%clk 0:02:19]}  Bg4 {[%clk 0:02:41]} 15. h3 {[%clk 0:02:13]}  Bxf3 {[%clk 0:02:33]} 16. Bxf3 {[%clk 0:02:14]}  Qf5 {[%clk 0:02:28]} 17. Rfe1 {[%clk 0:02:12]}  Rfe8 {[%clk 0:02:26]} 18. Rad1 {[%clk 0:02:11]}  Rac8 {[%clk 0:02:18]} 19. Bg4 {[%clk 0:02:11]} 1-0


[Site "https://www.chess.com"]

[Event "Titled Tuesday Blitz July 11 Early 2023"]
[White "Melikhov, Evgeny V."]
[Black "Levine, David"]
[WhiteFideId "4122046"]
[BlackFideId "2011611"]
[WhiteElo "2414"]
[BlackElo "2010"]
[Result "1-0"]
[Round "2"]
[TimeControl "180+2"]
[Date "2023.07.11"]
[WhiteClock "0:00:58"]
[BlackClock "0:00:39"]
[Board "229"]

1. d4 {[%clk 0:03:00]}  d5 {[%clk 0:02:59]} 2. c4 {[%clk 0:03:00]}  dxc4 {[%clk 0:02:59]} 3. Nf3 {[%clk 0:03:00]}  Nf6 {[%clk 0:02:58]} 4. e3 {[%clk 0:03:00]}  e6 {[%clk 0:02:57]} 5. Bxc4 {[%clk 0:03:00]}  a6 {[%clk 0:02:57]} 6. a4 {[%clk 0:03:00]}  Nc6 {[%clk 0:02:52]} 7. O-O {[%clk 0:02:58]}  Bd6 {[%clk 0:02:50]} 8. Nc3 {[%clk 0:02:56]}  O-O {[%clk 0:02:49]} 9. h3 {[%clk 0:02:40]}  e5 {[%clk 0:02:47]} 10. dxe5 {[%clk 0:02:35]}  Nxe5 {[%clk 0:02:46]} 11. Nxe5 {[%clk 0:02:35]}  Bxe5 {[%clk 0:02:46]} 12. Qxd8 {[%clk 0:02:32]}  Rxd8 {[%clk 0:02:46]} 13. Be2 {[%clk 0:02:11]}  Be6 {[%clk 0:02:39]} 14. Rd1 {[%clk 0:02:09]}  Rxd1+ {[%clk 0:02:36]} 15. Bxd1 {[%clk 0:02:09]}  Rd8 {[%clk 0:02:36]} 16. Bc2 {[%clk 0:02:09]}  c5 {[%clk 0:02:27]} 17. f4 {[%clk 0:02:01]}  Bc7 {[%clk 0:02:17]} 18. e4 {[%clk 0:01:56]}  Bc4 {[%clk 0:02:13]} 19. e5 {[%clk 0:01:53]}  Nd5 {[%clk 0:02:10]} 20. Nxd5 {[%clk 0:01:51]}  Bxd5 {[%clk 0:02:04]} 21. Be3 {[%clk 0:01:50]}  c4 {[%clk 0:01:56]} 22. Rd1 {[%clk 0:01:48]}  b5 {[%clk 0:01:51]} 23. axb5 {[%clk 0:01:47]}  axb5 {[%clk 0:01:51]} 24. Bc5 {[%clk 0:01:32]}  g5 {[%clk 0:01:47]} 25. g3 {[%clk 0:01:25]}  gxf4 {[%clk 0:01:41]} 26. gxf4 {[%clk 0:01:25]}  Kg7 {[%clk 0:01:36]} 27. Kf2 {[%clk 0:01:23]}  Rd7 {[%clk 0:01:27]} 28. Bf5 {[%clk 0:01:15]}  Rd8 {[%clk 0:01:18]} 29. Be7 {[%clk 0:01:03]}  Bb6+ {[%clk 0:01:15]} 30. Kg3 {[%clk 0:01:03]}  Be6 {[%clk 0:00:44]} 31. Bxd8 {[%clk 0:00:58]}  Bxd8 {[%clk 0:00:39]} 32. Bxe6 {[%clk 0:00:58]} 1-0


[Site "https://www.chess.com"]